bitfinex/quotes_SOLUSD_20250108
["timestamp","ask_amount","ask_price","bid_price","bid_amount"]
[1736364287782,20.0,195.45,195.38,6.4148]
[1736364290913,3.08,195.52,195.38,6.4148]
[1736364291114,20.0,195.51,195.38,6.4148]
[1736364291410,43.776884,195.51,195.38,6.4148]
[1736364291608,20.0,195.47,195.38,6.4148]
[1736364292306,20.0,195.48,195.38,6.4148]
[1736364295807,23.776884,195.51,195.38,6.4148]
[1736364295808,20.0,195.46,195.38,6.4148]
[1736364296411,20.0,195.47,195.38,6.4148]
[1736364296914,23.776884,195.46,195.38,6.4148]
[1736364300830,20.0,195.43,195.38,6.4148]
[1736364303896,20.0,195.39,195.33,6.0772]
[1736364304742,20.0,195.35,195.33,6.0772]
[1736364305026,3.08,195.43,195.33,6.0772]
[1736364305209,20.0,195.39,195.33,6.0772]
[1736364305813,20.0,195.42,195.33,6.0772]
[1736364306127,20.0,195.41,195.33,6.0772]
[1736364306626,23.776884,195.44,195.33,6.0772]
[1736364306627,20.0,195.37,195.33,6.0772]
[1736364307333,20.0,195.33,195.27,7.6897]
[1736364307825,38.04473616,195.45,195.27,7.6897]
[1736364308028,38.04473616,195.45,195.28,39.52706678]
[1736364308029,20.0,195.42,195.28,39.52706678]
[1736364308215,8.04473616,195.43,195.31,23.50878278]
[1736364308829,20.0,195.41,195.31,7.7586]
[1736364309239,20.0,195.43,195.31,7.7586]
[1736364309413,3.08,195.45,195.31,7.7586]
[1736364310026,20.0,195.41,195.31,7.7586]
[1736364311327,23.776884,195.4,195.31,7.7586]
[1736364311501,20.0,195.37,195.31,7.7586]
[1736364313318,23.776884,195.4,195.19,5.0]
[1736364313319,20.0,195.33,195.27,1.6173]
[1736364313528,20.0,195.29,195.26,6.472]
[1736364315435,20.0,195.29,195.22,1.6173]
[1736364316427,20.0,195.31,195.22,1.6173]
[1736364316835,6.2018,195.4,195.22,1.6173]
[1736364316836,30.0,195.4,195.24,15.75018278]
[1736364317042,8.04473616,195.42,195.28,1.6129]
[1736364317239,8.04473616,195.42,195.29,21.80238278]
[1736364317410,8.04473616,195.42,195.3,15.75018278]
[1736364317613,2.07351813,195.43,195.3,15.75018278]
[1736364317911,11.12473616,195.48,195.32,17.26368278]
[1736364318111,20.0,195.46,195.32,17.26368278]
[1736364318337,20.0,195.42,195.32,1.5135]
[1736364318636,2.01833765,195.48,195.32,1.5135]
[1736364318818,1.5625,195.49,195.32,1.5135]
[1736364319014,53.776884,195.48,195.32,1.5135]
[1736364319333,30.132549,195.51,195.33,21.98178278]
[1736364319506,8.04473616,195.52,195.36,15.75018278]
[1736364319707,8.04473616,195.52,195.35,23.776884]
[1736364319906,23.776884,195.52,195.35,23.776884]
[1736364320106,23.776884,195.52,195.34,25.18922331]
[1736364320407,20.0,195.45,195.34,25.18922331]
[1736364320645,20.0,195.45,195.33,6.2316]
[1736364321230,43.776884,195.48,195.33,6.2316]
[1736364323142,45.85139419,195.48,195.33,6.2316]
[1736364324819,75.85139419,195.48,195.33,6.2316]
[1736364325136,20.0,195.47,195.33,6.2316]
[1736364325643,20.0,195.43,195.33,6.2316]
[1736364326413,20.0,195.39,195.33,6.2316]
[1736364328725,20.0,195.35,195.28,8.1742]
[1736364330766,20.0,195.36,195.28,6.6102]
[1736364333751,3.08,195.42,195.28,6.6102]
[1736364334243,23.776884,195.43,195.29,1.6569]
[1736364334413,8.04473616,195.44,195.29,1.6569]
[1736364334639,8.04473616,195.44,195.3,23.776884]
[1736364335069,23.776884,195.45,195.3,48.96610731]
[1736364335239,3.08,195.46,195.3,23.776884]
[1736364335557,5.10132511,195.46,195.3,48.96610731]
[1736364335748,2.02132511,195.46,195.3,23.776884]
[1736364336077,1.5471,195.48,195.29,1.6569]
[1736364336273,20.0,195.46,195.3,48.96610731]
[1736364336604,23.776884,195.47,195.31,25.18922331]
[1736364336776,20.0,195.45,195.31,25.18922331]
[1736364337486,20.0,195.45,195.3,48.96610731]
[1736364337658,20.0,195.45,195.3,23.776884]
[1736364338166,53.776884,195.47,195.29,1.6569]
[1736364338480,20.0,195.4,195.29,1.6569]
[1736364340307,3.58100298,195.48,195.3,23.776884]
[1736364340476,20.0,195.43,195.29,1.6569]
[1736364341187,20.0,195.42,195.29,1.6569]
[1736364343078,20.0,195.43,195.29,1.6569]
[1736364344175,20.0,195.38,195.29,1.6569]
[1736364344869,2.0949333,195.48,195.31,15.7563947]
[1736364345068,8.04473616,195.49,195.32,6.0856]
[1736364345367,23.776884,195.48,195.32,6.0856]
[1736364345554,23.776884,195.44,195.32,6.0856]
[1736364345747,20.0,195.41,195.32,6.0856]
[1736364346246,20.0,195.39,195.32,6.0856]
[1736364349362,23.776884,195.38,195.32,6.0856]
[1736364349548,20.0,195.36,195.27,6.401]
[1736364349751,20.0,195.34,195.27,6.401]
[1736364349957,20.0,195.38,195.27,6.401]
[1736364350271,20.0,195.3,195.27,6.401]
[1736364350655,20.0,195.3,195.24,1.5018]
[1736364351173,35.08762015,195.41,195.24,1.5018]
[1736364351377,8.04473616,195.39,195.24,1.5018]
[1736364351681,20.0,195.35,195.24,1.5018]
[1736364352178,20.0,195.38,195.24,1.5018]
[1736364352372,20.0,195.36,195.24,1.5018]
[1736364352573,23.776884,195.35,195.24,1.5018]
[1736364352761,20.0,195.32,195.24,1.5018]
[1736364354274,20.0,195.28,195.22,6.4407]
[1736364354485,20.0,195.26,195.22,6.4407]
[1736364355067,20.0,195.26,195.19,1.6431]
[1736364357985,43.776884,195.25,195.17,6.0747]
[1736364359265,20.0,195.27,195.17,6.0747]
[1736364359585,20.0,195.25,195.17,6.0747]
[1736364359883,20.0,195.27,195.17,6.0747]
[1736364360184,20.0,195.25,195.17,6.0747]
[1736364360561,20.0,195.29,195.17,6.0747]
[1736364360814,33.06,195.32,195.17,6.0747]
[1736364360815,23.776884,195.31,195.17,6.0747]
[1736364361366,1.5189,195.35,195.17,6.0747]
[1736364361672,2.01246542,195.35,195.22,49.02990365]
[1736364361886,9.68603616,195.4,195.24,1.5074]
[1736364362268,8.04473616,195.4,195.26,6.0682]
[1736364362577,20.0,195.37,195.26,6.0682]
[1736364362771,20.0,195.37,195.27,23.776884]
[1736364362970,1.602,195.45,195.27,23.776884]
[1736364363179,23.776884,195.44,195.27,23.776884]
[1736364363369,3.62849676,195.45,195.27,23.776884]
[1736364363557,2.02649676,195.45,195.29,55.32100365]
[1736364363760,38.04473616,195.49,195.29,55.32100365]
[1736364363996,8.04473616,195.49,195.31,23.776884]
[1736364364290,10.09039389,195.49,195.32,3.06]
[1736364364598,2.04565773,195.49,195.32,3.06]
[1736364364906,20.0,195.46,195.32,3.06]
[1736364365221,44.12693616,195.53,195.34,1.6067]
[1736364365222,36.0822,195.53,195.34,1.6067]
[1736364365511,43.776884,195.49,195.34,1.6067]
[1736364365817,43.776884,195.49,195.35,3.06]
[1736364367183,43.776884,195.49,195.34,1.6067]
[1736364367387,43.776884,195.49,195.34,4.6667]
[1736364367786,20.0,195.44,195.34,1.6067]
[1736364368097,20.0,195.4,195.33,6.5556]
[1736364368396,3.06,195.48,195.33,6.5556]
[1736364368397,20.0,195.36,195.33,6.5556]
[1736364369902,31.5528,195.45,195.33,6.5556]
[1736364369903,20.0,195.42,195.33,6.5556]
[1736364370273,20.0,195.43,195.33,6.5556]
[1736364370472,20.0,195.39,195.33,6.5556]
[1736364370786,23.776884,195.38,195.29,1.604]
[1736364371380,20.0,195.35,195.29,1.604]
[1736364372716,2.0422575,195.38,195.29,1.604]
[1736364372893,20.0,195.41,195.29,1.604]
[1736364373209,20.0,195.37,195.29,1.604]
[1736364374012,20.0,195.33,195.29,1.604]
[1736364374718,1.5528,195.45,195.29,1.604]
[1736364375226,20.0,195.39,195.29,1.604]
[1736364375532,1.5528,195.45,195.29,1.604]
[1736364375533,3.60103929,195.45,195.29,1.604]
[1736364375697,2.04823929,195.45,195.31,6.2098]
[1736364375895,3.06,195.49,195.32,49.02990365]
[1736364376096,8.04473616,195.52,195.35,1.6213]
[1736364376419,8.04473616,195.52,195.37,23.776884]
[1736364376905,4.7134,195.56,195.37,23.776884]
[1736364377105,23.776884,195.51,195.36,31.59921965]
[1736364377428,20.0,195.48,195.36,6.3462]
[1736364378521,23.776884,195.47,195.36,6.3462]
[1736364379506,2.09304698,195.49,195.36,6.3462]
[1736364379710,20.0,195.51,195.36,6.3462]
[1736364380032,43.776884,195.5,195.36,6.3462]
[1736364381600,73.776884,195.5,195.36,6.3462]
[1736364382429,20.0,195.44,195.36,6.3462]
[1736364382615,20.0,195.4,195.36,6.3462]
[1736364384019,2.0811124,195.44,195.36,6.3462]
[1736364384205,20.0,195.43,195.36,6.3462]
[1736364384716,20.0,195.42,195.36,6.3462]
[1736364387433,8.04473616,195.53,195.36,7.11400559]
[1736364387730,8.04473616,195.53,195.37,49.02990365]
[1736364388025,8.04473616,195.53,195.37,23.776884]
[1736364388026,20.0,195.5,195.37,23.776884]
[1736364388398,10.0751318,195.53,195.4,6.39]
[1736364388399,2.03039564,195.53,195.4,6.39]
[1736364388599,23.776884,195.54,195.4,6.39]
[1736364389526,3.06,195.55,195.41,1.6251]
[1736364389727,23.06,195.55,195.41,1.6251]
[1736364389924,20.0,195.51,195.41,1.6251]
[1736364393435,22.10394739,195.51,195.41,1.6251]
[1736364393726,23.776884,195.5,195.41,1.6251]
[1736364393903,20.0,195.47,195.41,1.6251]
[1736364395117,2.10394739,195.51,195.41,1.6251]
[1736364395458,20.0,195.47,195.41,1.6251]
[1736364396230,30.0,195.54,195.41,1.6251]
[1736364396231,20.0,195.54,195.41,1.6251]
[1736364396432,20.0,195.52,195.41,1.6251]
[1736364396641,23.776884,195.51,195.41,1.6251]
[1736364397466,20.0,195.48,195.41,1.6251]
[1736364398376,20.0,195.44,195.41,1.6251]
[1736364399046,23.776884,195.47,195.32,1.5329]
[1736364399047,20.0,195.4,195.32,1.5329]
[1736364399593,23.776884,195.44,195.32,1.5329]
[1736364399750,37.7993,195.51,195.32,21.5329]
[1736364399955,7.7993,195.51,195.32,1.5329]
[1736364400155,23.776884,195.46,195.32,1.5329]
[1736364400348,23.776884,195.46,195.33,20.0]
[1736364401658,23.776884,195.46,195.32,21.5329]
[1736364401968,20.0,195.45,195.33,6.0413]
[1736364402166,20.0,195.43,195.33,6.0413]
[1736364402346,20.0,195.39,195.33,6.0413]
[1736364403065,20.0,195.43,195.33,6.0413]
[1736364403666,20.0,195.39,195.33,6.0413]
[1736364403964,20.0,195.35,195.28,6.008]
[1736364404164,23.776884,195.42,195.28,6.008]
[1736364404547,23.776884,195.38,195.28,6.008]
[1736364404750,20.0,195.35,195.28,6.008]
[1736364407330,20.0,195.31,195.27,1.6577]
[1736364408154,20.0,195.38,195.27,1.6577]
[1736364408370,20.0,195.37,195.27,1.6577]
[1736364408657,20.0,195.33,195.27,1.6577]
[1736364409671,23.776884,195.32,195.27,1.6577]
[1736364409855,20.0,195.37,195.24,6.0202]
[1736364410053,20.0,195.33,195.24,6.0202]
[1736364411546,20.0,195.38,195.24,6.0202]
[1736364412152,23.776884,195.37,195.24,6.0202]
[1736364412345,23.776884,195.4,195.24,6.0202]
[1736364412960,20.0,195.37,195.24,6.0202]
[1736364413390,23.776884,195.4,195.26,1.6224]
[1736364413543,2.08681686,195.41,195.27,0.76786385]
[1736364413745,23.776884,195.44,195.27,0.76786385]
[1736364414077,20.0,195.37,195.28,6.1821]
[1736364415236,23.776884,195.4,195.28,6.1821]
[1736364415440,43.776884,195.41,195.28,6.1821]
[1736364418070,20.0,195.35,195.28,6.1821]
[1736364418386,20.0,195.31,195.28,6.1821]
[1736364418977,20.0,195.38,195.28,6.1821]
[1736364419480,43.776884,195.37,195.28,6.1821]
[1736364420351,43.776884,195.37,195.26,1.6224]
[1736364421254,2.10476044,195.38,195.26,1.6224]
[1736364421487,8.04473616,195.45,195.27,6.0595]
[1736364421865,20.0,195.38,195.27,6.0595]
[1736364422386,20.0,195.43,195.27,6.0595]
[1736364422691,2.02370089,195.45,195.3,49.02990365]
[1736364422981,8.04473616,195.5,195.33,7.6852]
[1736364423187,20.0,195.47,195.33,7.6852]
[1736364423362,20.0,195.43,195.33,7.6852]
[1736364424555,2.08266966,195.5,195.33,7.6852]
[1736364424754,23.776884,195.5,195.33,7.6852]
[1736364425172,20.0,195.43,195.33,7.6852]
[1736364425490,20.0,195.39,195.33,7.6852]
[1736364429377,20.0,195.35,195.26,7.7305]
[1736364431899,1.573,195.48,195.27,34.08108154]
[1736364432213,32.17894465,195.5,195.35,56.89190365]
[1736364432360,48.26841697,195.53,195.4,23.776884]
[1736364432361,8.04473616,195.53,195.4,23.776884]
[1736364432559,8.04473616,195.53,195.42,31.638884]
[1736364432757,8.04473616,195.53,195.44,23.776884]
[1736364433001,8.04473616,195.53,195.45,3.82712381]
[1736364433466,8.04473616,195.53,195.45,3.06]
[1736364433665,32.17894465,195.56,195.45,3.06]
[1736364433666,20.0,195.56,195.45,3.06]
[1736364434477,23.776884,195.59,195.45,3.06]
[1736364435072,20.0,195.56,195.45,3.06]
[1736364435589,8.04473616,195.67,195.46,49.02990365]
[1736364435791,23.776884,195.66,195.48,23.776884]
[1736364436168,23.776884,195.67,195.48,23.776884]
[1736364436389,2.09629724,195.67,195.48,23.776884]
[1736364436691,43.776884,195.64,195.48,23.776884]
[1736364437493,3.57832431,195.69,195.48,23.776884]
[1736364437494,3.57832431,195.69,195.5,23.776884]
[1736364437701,2.03182431,195.69,195.51,1.6277]
[1736364437903,20.0,195.65,195.51,1.6277]
[1736364440105,20.0,195.65,195.52,23.776884]
[1736364440314,30.0,195.73,195.52,23.776884]
[1736364440604,2.09102711,195.73,195.56,23.776884]
[1736364440781,36.5569,195.77,195.57,3.04]
[1736364440782,30.0,195.76,195.57,3.04]
[1736364440980,6.5569,195.77,195.57,3.04]
[1736364441289,6.5569,195.77,195.58,23.776884]
[1736364441591,2.04745629,195.77,195.61,25.25301965]
[1736364441797,19.34327679,195.8,195.63,6.3157]
[1736364441976,20.0,195.77,195.63,6.3157]
[1736364442294,19.34327679,195.8,195.64,23.776884]
[1736364442591,20.0,195.76,195.63,6.3157]
[1736364442795,23.776884,195.79,195.63,6.3157]
[1736364443100,20.0,195.75,195.63,6.3157]
[1736364443410,23.776884,195.74,195.63,6.3157]
[1736364443802,20.0,195.77,195.63,6.3157]
[1736364443987,20.0,195.76,195.63,6.3157]
[1736364444304,20.0,195.72,195.63,6.3157]
[1736364445316,20.0,195.77,195.63,6.3157]
[1736364446107,19.34327679,195.8,195.64,23.776884]
[1736364447210,19.34327679,195.8,195.68,6.5406]
[1736364447408,2.02892914,195.82,195.68,6.5406]
[1736364447699,20.0,195.87,195.69,24.54306291]
[1736364447910,20.0,195.84,195.7,3.04]
[1736364448217,22.08461228,195.89,195.72,6.4503]
[1736364448382,30.0,195.93,195.74,1.624]
[1736364448714,43.776884,195.89,195.74,1.624]
[1736364449013,20.0,195.89,195.74,1.624]
[1736364449312,23.776884,195.92,195.74,1.624]
[1736364449520,30.0,195.91,195.74,1.624]
[1736364449725,20.0,195.84,195.74,1.624]
[1736364450015,3.04,195.9,195.74,1.624]
[1736364450016,20.0,195.8,195.74,1.624]
[1736364450620,20.0,195.8,195.72,6.4503]
[1736364452485,20.0,195.76,195.72,6.4503]
[1736364453600,20.0,195.82,195.72,6.4503]
[1736364453996,20.0,195.78,195.72,6.4503]
[1736364454928,20.0,195.74,195.68,1.5357]
[1736364455823,20.0,195.76,195.68,1.5357]
[1736364455997,3.04,195.8,195.68,1.5357]
[1736364456332,20.0,195.82,195.68,1.5357]
[1736364456491,22.06236802,195.82,195.68,1.5357]
[1736364457092,23.776884,195.81,195.68,1.5357]
[1736364457951,23.776884,195.81,195.69,6.0673]
[1736364460421,2.06236802,195.82,195.69,6.0673]
[1736364460623,20.0,195.83,195.69,6.0673]
[1736364460830,3.04,195.87,195.69,6.0673]
[1736364461029,20.0,195.83,195.69,6.0673]
[1736364461325,23.776884,195.86,195.69,6.0673]
[1736364461491,20.0,195.83,195.69,6.0673]
[1736364461813,20.0,195.79,195.69,6.0673]
[1736364462419,23.776884,195.78,195.69,6.0673]
[1736364462800,20.0,195.75,195.69,6.0673]
[1736364463206,20.0,195.81,195.69,6.0673]
[1736364463412,20.0,195.8,195.69,6.0673]
[1736364463627,20.0,195.76,195.69,6.0673]
[1736364465237,23.776884,195.83,195.69,6.0673]
[1736364465446,20.0,195.8,195.69,6.0673]
[1736364465817,20.0,195.8,195.7,23.776884]
[1736364466121,2.10588065,195.84,195.69,6.0673]
[1736364466308,23.776884,195.87,195.69,6.83344114]
[1736364466502,20.0,195.84,195.69,6.83344114]
[1736364466729,3.04,195.89,195.7,23.776884]
[1736364466948,43.776884,195.88,195.7,23.776884]
[1736364467322,43.776884,195.88,195.71,1.6069]
[1736364470449,20.0,195.82,195.71,1.6069]
[1736364473108,2.02233316,195.84,195.76,20.0]
[1736364473314,2.05709812,195.91,195.79,25.25301965]
[1736364473650,1.6368,195.98,195.8,49.79572056]
[1736364473956,30.0,195.97,195.81,3.04]
[1736364474258,3.04,195.96,195.77,8.1337]
[1736364474407,20.0,195.9,195.77,8.1337]
[1736364475112,30.0,195.95,195.77,8.1337]
[1736364475113,20.0,195.86,195.77,8.1337]
[1736364475327,33.04,195.97,195.77,8.1337]
[1736364475606,43.776884,195.93,195.77,8.1337]
[1736364477333,73.776884,195.93,195.77,8.1337]
[1736364477539,20.0,195.88,195.77,8.1337]
[1736364477852,20.0,195.87,195.77,8.1337]
[1736364478919,20.0,195.86,195.77,8.1337]
[1736364479558,20.0,195.84,195.77,8.1337]
[1736364479723,20.0,195.85,195.77,8.1337]
[1736364479928,20.0,195.84,195.77,8.1337]
[1736364480349,2.01441231,195.85,195.77,8.1337]
[1736364480555,20.0,195.86,195.77,8.1337]
[1736364480918,23.04,195.88,195.77,8.1337]
[1736364481527,25.04813397,195.88,195.77,8.1337]
[1736364482461,2.00813397,195.88,195.77,8.1337]
[1736364482644,8.3468,195.98,195.78,23.776884]
[1736364483132,23.776884,195.96,195.78,23.776884]
[1736364483341,5.3068,195.98,195.82,23.776884]
[1736364483342,5.71887275,195.98,195.82,23.776884]
[1736364483540,2.04887275,195.98,195.82,23.776884]
[1736364483741,20.0,195.98,195.82,23.776884]
[1736364483925,25.594074,196.01,195.82,23.776884]
[1736364484123,55.594074,196.01,195.82,23.776884]
[1736364484428,20.0,195.96,195.82,23.776884]
[1736364484838,20.0,195.92,195.81,7.8808]
[1736364485153,20.0,195.91,195.81,7.8808]
[1736364485552,20.0,195.87,195.77,1.5853]
[1736364486125,3.04,195.93,195.78,23.776884]
[1736364487917,20.0,195.89,195.77,1.5853]
[1736364488122,20.0,195.88,195.77,1.5853]
[1736364488548,20.0,195.86,195.77,1.5853]
[1736364491538,2.04042474,195.88,195.77,1.5853]
[1736364491755,20.0,195.86,195.77,1.5853]
[1736364492738,20.0,195.85,195.77,1.5853]
[1736364493740,2.10381336,195.86,195.72,1.6382]
[1736364493741,20.0,195.83,195.72,1.6382]
[1736364493943,20.0,195.81,195.72,1.6382]
[1736364494463,20.0,195.77,195.72,1.6382]
[1736364494649,20.0,195.77,195.61,1.6382]
[1736364494857,20.0,195.77,195.62,23.776884]
[1736364495037,20.0,195.79,195.62,23.776884]
[1736364495236,20.0,195.79,195.62,20.0]
[1736364495439,20.0,195.79,195.61,1.6382]
[1736364495653,20.0,195.79,195.62,23.776884]
[1736364496434,20.0,195.75,195.61,1.6382]
[1736364496755,20.0,195.75,195.63,6.3616]
[1736364498662,20.0,195.71,195.63,6.3616]
[1736364499332,20.0,195.75,195.63,6.3616]
[1736364500047,20.0,195.71,195.63,6.3616]
[1736364500554,20.0,195.75,195.63,6.3616]
[1736364501233,23.776884,195.74,195.63,6.3616]
[1736364501438,3.02,195.73,195.63,6.3616]
[1736364501655,23.02,195.73,195.63,6.3616]
[1736364502040,3.02,195.73,195.63,6.3616]
[1736364502860,20.0,195.73,195.63,6.3616]
[1736364503735,20.0,195.7,195.61,1.6382]
[1736364504272,20.0,195.69,195.61,1.6382]
[1736364504946,30.0,195.76,195.61,1.6382]
[1736364504947,20.0,195.73,195.61,1.6382]
[1736364505151,23.776884,195.72,195.61,1.6382]
[1736364505348,20.0,195.69,195.61,1.6382]
[1736364506335,20.0,195.68,195.61,1.6382]
[1736364507051,20.0,195.68,195.58,6.603]
[1736364508052,20.0,195.64,195.58,6.603]
[1736364508782,20.0,195.64,195.53,6.6085]
[1736364509350,20.0,195.6,195.53,6.6085]
[1736364509869,20.0,195.59,195.43,6.1606]
[1736364510064,20.0,195.59,195.44,1.5388]
[1736364510573,33.02,195.66,195.45,23.776884]
[1736364510780,20.0,195.62,195.45,23.776884]
[1736364510948,20.0,195.62,195.49,25.315684]
[1736364511348,20.0,195.62,195.49,1.5388]
[1736364511755,20.0,195.61,195.49,1.5388]
[1736364512567,20.0,195.62,195.49,1.5388]
[1736364513979,23.02,195.62,195.49,1.5388]
[1736364514873,20.0,195.61,195.49,1.5388]
[1736364516775,22.03223627,195.61,195.49,1.5388]
[1736364518002,20.0,195.57,195.49,1.5388]
[1736364520278,3.02,195.6,195.49,1.5388]
[1736364520480,20.0,195.58,195.49,1.5388]
[1736364526477,20.0,195.54,195.49,1.5388]
[1736364526880,3.02,195.6,195.49,1.5388]
[1736364527109,20.0,195.58,195.49,1.5388]
[1736364528404,20.0,195.56,195.49,1.5388]
[1736364528699,20.0,195.55,195.46,6.1606]
[1736364529282,23.776884,195.59,195.46,6.1606]
[1736364529283,20.0,195.56,195.46,6.1606]
[1736364530899,19.79241719,195.56,195.46,6.1606]
[1736364531091,21.85340116,195.56,195.46,6.1606]
[1736364531491,2.06098397,195.56,195.46,6.1606]
[1736364531688,26.796884,195.59,195.46,6.1606]
[1736364531900,30.0,195.62,195.46,6.1606]
[1736364532104,3.02,195.6,195.46,6.1606]
[1736364532400,3.02,195.6,195.47,23.776884]
[1736364533587,20.0,195.59,195.47,23.776884]
[1736364533788,20.0,195.59,195.46,6.1606]
[1736364533984,43.776884,195.59,195.46,6.1606]
[1736364534206,23.776884,195.58,195.46,6.1606]
[1736364534395,20.0,195.55,195.46,6.1606]
[1736364540112,22.07417685,195.55,195.46,6.1606]
[1736364541058,20.0,195.51,195.46,6.1606]
[1736364541214,19.5,195.51,195.46,6.1606]
[1736364541389,30.0,195.56,195.46,6.1606]
[1736364541990,23.776884,195.55,195.46,6.1606]
[1736364542611,23.776884,195.55,195.44,1.6583]
[1736364545219,20.0,195.52,195.44,1.6583]
[1736364545803,20.0,195.58,195.44,1.6583]
[1736364546003,23.776884,195.6,195.44,1.6583]
[1736364546200,1.6495,195.64,195.45,26.796884]
[1736364546393,30.0,195.67,195.49,23.776884]
[1736364546607,9.50524378,195.69,195.51,23.776884]
[1736364546811,30.0,195.68,195.51,23.776884]
[1736364547113,20.0,195.65,195.51,23.776884]
[1736364547302,30.0,195.68,195.51,23.776884]
[1736364547303,23.776884,195.67,195.51,23.776884]
[1736364548316,20.0,195.6,195.5,6.6455]
[1736364549321,43.776884,195.64,195.5,6.6455]
[1736364549738,2.08324339,195.69,195.51,50.4925723]
[1736364549909,31.6084,195.74,195.53,30.078284]
[1736364549910,1.6084,195.74,195.53,30.078284]
[1736364550224,1.6084,195.74,195.55,23.776884]
[1736364550394,20.0,195.72,195.55,23.776884]
[1736364550597,20.0,195.68,195.55,23.776884]
[1736364550796,53.776884,195.73,195.54,5.40052444]
[1736364551119,20.0,195.7,195.54,4.6338]
[1736364551318,20.0,195.66,195.54,4.6338]
[1736364551922,3.64351499,195.74,195.56,6.0772]
[1736364552106,20.0,195.72,195.57,1.5131]
[1736364552312,20.0,195.7,195.57,1.5131]
[1736364552516,20.0,195.66,195.57,1.5131]
[1736364555614,20.0,195.72,195.57,1.5131]
[1736364556020,20.0,195.68,195.57,1.5131]
[1736364559625,20.0,195.64,195.57,1.5131]
[1736364562625,2.0521953,195.68,195.57,1.5131]
[1736364562950,30.0,195.73,195.57,1.5131]
[1736364563118,23.776884,195.72,195.57,1.5131]
[1736364563757,43.776884,195.69,195.57,1.5131]
[1736364569162,20.0,195.64,195.57,1.5131]
[1736364569334,53.776884,195.67,195.57,1.5131]
[1736364569335,20.0,195.6,195.57,1.5131]
[1736364569536,20.0,195.6,195.56,6.0772]
[1736364570459,20.0,195.6,195.53,1.5052]
[1736364574137,23.776884,195.61,195.53,1.5052]
[1736364574762,20.0,195.58,195.53,1.5052]
[1736364577069,20.0,195.59,195.53,1.5052]
[1736364581751,20.0,195.59,195.48,1.5124]
[1736364581752,81.3,195.57,195.48,1.5124]
[1736364582064,20.0,195.54,195.48,1.5124]
[1736364588613,30.0,195.63,195.48,1.5124]
[1736364588614,81.3,195.63,195.48,1.5124]
[1736364588755,81.3,195.62,195.48,1.5124]
[1736364588958,20.0,195.59,195.49,6.209]
[1736364589764,20.0,195.59,195.5,23.776884]
[1736364589997,81.3,195.62,195.52,23.776884]
[1736364591009,81.3,195.62,195.5,23.776884]
[1736364597189,20.0,195.59,195.5,23.776884]
[1736364598009,20.0,195.59,195.49,6.209]
[1736364600409,81.3,195.54,195.49,6.209]
[1736364601306,20.0,195.57,195.49,6.209]
[1736364603618,81.3,195.56,195.49,6.209]
[1736364603799,20.0,195.53,195.48,1.5124]
[1736364604014,20.0,195.52,195.44,7.9054]
[1736364604211,81.3,195.51,195.44,7.9054]
[1736364607216,81.3,195.59,195.45,23.776884]